Cogmind - Beta 15 @@@ ROGUE MODE // 2025.06.03 @ 21:25:00 Player: HSFM Result: Destroyed self with Subdweller Shrapnel Launcher Performance ------------- Evolutions (0) 0 Regions Visited (2) 400 Robots Destroyed (26) 130 Value Destroyed (670) 670 Prototype IDs (2) 40 Alien Tech Used (0) 0 Bonus (0) 0 TOTAL SCORE: 1240 Bonus ------- None Cogmind --------- Core Integrity 0/250 Matter 280/300 Energy 192/265 System Corruption 5% Temperature Cool (0) Movement Walking (190) Ox1 Location -10/Subcaves Parts ------- > --- POWER (1) -------- Improved Ion Engine > --- PROPULSION (2) --- Aluminum Leg Aluminum Leg > --- UTILITY (2) ------ Small Storage Unit Structural Scanner > --- WEAPON (2) ------- EMP Blaster Subdweller Shrapnel Launcher > --- INVENTORY (8) ---- Ion Engine Large Storage Unit Improved Terrain Scanner Seismic Detector Scrap Shield Datajack Mining Laser Peak State ------------ > --- POWER ------------ Improved Ion Engine > --- PROPULSION ------- Aluminum Leg Aluminum Leg > --- UTILITY ---------- Small Storage Unit Structural Scanner > --- WEAPON ----------- EMP Blaster EMP Blaster > --- INVENTORY -------- Ion Engine Large Storage Unit Terrain Scanner Improved Terrain Scanner Seismic Detector Particle Gun Datajack Mining Laser [Rating: 11] Favorites ----------- Power Ion Engine Engine Ion Engine Propulsion Aluminum Leg Leg Aluminum Leg Utility Small Storage Unit Device Structural Scanner Storage Small Storage Unit Weapon Grenade Launcher Energy Gun Small Laser Ballistic Gun Assault Rifle Launcher Grenade Launcher Special Weapon Mining Laser Special Melee Weapon Datajack Build | -11 -10 -10 ------- Run | Yrd Mat Sub Slots Evolved . | . . . Power . | . . . Propulsion . | . . . Utility . | . . . Weapon . | . . . Parts Attached 19 | 8 10 1 Power 2 | 1 1 . Engine 2 | 1 1 . Core . | . . . Reactor . | . . . Propulsion 4 | 2 2 . Treads . | . . . Leg 4 | 2 2 . Wheel . | . . . Hover . | . . . Flight . | . . . Utility 4 | 3 1 . Device 3 | 2 1 . Storage 1 | 1 . . Processor . | . . . Hackware . | . . . Protection . | . . . Artifact . | . . . Weapon 9 | 2 6 1 Energy Gun 1 | 1 . . Energy Cannon . | . . . Ballistic Gun 1 | 1 . . Ballistic Cannon . | . . . Launcher 5 | . 4 1 Special Weapon 1 | . 1 . Impact Weapon . | . . . Slashing Weapon . | . . . Piercing Weapon . | . . . Special Melee Weapon 1 | . 1 . Unidentified Prototypes . | . . . Parts Lost 3 | . 2 1 Power . | . . . Propulsion 1 | . 1 . Utility . | . . . Weapon 2 | . 1 1 Highest Loss Streak 1 | . 1 1 To Critical Strikes . | . . . Average Backups 6 | 1 7 7 Power . | . . 1 Propulsion . | . . . Utility 3 | . 3 4 Weapon 1 | . 2 1 Tool/Special . | . . . Unused Backups 4 | . . 4 Power . | . . . Propulsion . | . . . Utility 3 | . . 3 Weapon 1 | . . 1 Tool/Special . | . . . Average Slot Usage (%) 99 | . 99 98 Engine 14 | . 14 14 Leg 27 | . 27 28 Device 14 | . 14 14 Storage 14 | . 14 14 Ballistic Gun 1 | . 2 . Launcher 20 | . 19 22 Special Weapon 4 | . 4 4 Peak Build Rating 11 | 9 11 11 Average Rating 8 | 6 8 10 On Entrance 5 | . 7 10 Naked Turns . | . . . Heaviest Build 25 | 14 21 25 Greatest Support 20 | 20 20 20 Greatest Overweight (x) 2 | 2 1 1 Average Overweight (x) . | . . . Largest Inventory Capacity 8 | 8 8 8 Average Capacity 7 | 5 8 8 Most Carried 8 | 3 8 8 Average Carried 6 | 1 7 7 Final Capacity 8 | 8 8 8 Final Carried 8 | 2 8 8 Class Distribution -------------------- 100% | Mutant Dominant Class ---------------- Mutant | -10/Materials Mutant | -10/Subcaves Resources | -11 -10 -10 ----------- Run | Yrd Mat Sub Matter Collected 839 | 252 331 256 Remotely . | . . . Salvage Created 669 | 76 439 154 Parts 45 | 11 28 6 Haulers Intercepted 1 | . 1 . Recyclers Shooed . | . . . Parts Field Recycled . | . . . Retrieved Matter . | . . . Parts Self-Destructed 4 | . . 4 Prevented . | . . . Kills | -11 -10 -10 ------- Run | Yrd Mat Sub Combat Hostiles Destroyed 18 | . 15 3 Guns 1 | . 1 . AOE 17 | . 14 3 Classes Destroyed 8 | 1 5 2 Worker 2 | . 2 . Tunneler 3 | 3 . . Hauler 1 | . 1 . Watcher 2 | . 2 . Swarmer 3 | . 3 . Grunt 13 | . 12 1 Sentry 1 | . . 1 Subdweller 1 | . . 1 Best Kill Streak 9 | 2 9 2 Combat Bots Only 6 | . 6 2 Max Kills in Single Turn 5 | 2 5 2 Gunslinging . | . . . Exploded 3 | . 3 2 Melee . | . . . Uniques/NPCs Destroyed . | . . . Combat | -11 -10 -10 -------- Run | Yrd Mat Sub Hostile Shots Fired 46 | . 36 10 Missed 12 | . 8 4 Hits 34 | . 28 6 Projectile 34 | . 28 6 Critical Strikes 1 | . 1 . Damage Taken 936 | . 665 271 Core 281 | . 214 67 Absorbed by Shields . | . . . Core Remaining (%) 100 | 100 . . Volleys Fired 48 | 7 34 7 Largest 2 | 2 2 2 Hottest 100 | 60 100 73 Shots Fired 74 | 14 49 11 Gun 22 | 14 8 . Cannon . | . . . Launcher 45 | . 34 11 Special 7 | . 7 . Kinetic 16 | 7 8 1 Thermal 14 | 7 7 . Explosive 22 | . 22 . Electromagnetic 22 | . 12 10 Robot Hit Streak 11 | 4 11 3 Robot Miss Streak 2 | 2 2 1 Penetration Max . | . . . Secondary Targets . | . . . Shots Hit Robots 37 | 8 26 3 Core Hits 41 | 3 34 4 Critical Kills . | . . . Critical Parts Destroyed . | . . . Critical Strikes . | . . . Melee Attacks 1 | . 1 . Impact . | . . . Slashing . | . . . Piercing . | . . . Sneak Attacks . | . . . Combat Hostiles . | . . . Follow-up Attacks . | . . . Damage Inflicted 1840 | 105 1441 294 Guns 207 | 105 102 . Cannons . | . . . Explosions 1633 | . 1339 294 Melee . | . . . Ramming . | . . . Kinetic 212 | 51 102 59 Thermal 85 | 54 . 31 Explosive 1158 | . 1158 . Electromagnetic 385 | . 181 204 Impact . | . . . Slashing . | . . . Piercing . | . . . Highest Corruption 5 | . 5 5 Average Corruption 4 | . 4 5 Corruption Purged . | . . . Corruption Blocked . | . . . Effects 20 | . 14 6 Message Errors 3 | . 1 2 Matter Fused 4 | . 3 1 Heat Flow Errors 2 | . 2 . Energy Discharges 3 | . 3 . Data Loss (major) 5 | . 3 2 Misfires 2 | . 2 . Weapon Failures 1 | . . 1 Overload Shots . | . . . Overflow Damage 19 | . 10 9 Projectiles . | . . . Explosions 19 | . 10 9 Melee . | . . . Knockbacks . | . . . Impact . | . . . Kinetic . | . . . Secondary . | . . . Self-Inflicted Damage 293 | . 130 163 Shots 12 | . 4 8 Rammed . | . . . Targets Rammed . | . . . Kicked . | . . . Crushed . | . . . Highest Temperature 275 | . 275 . Average Temperature 53 | . 53 . Received Heat Transfer 219 | . 204 15 Siege Activations . | . . . Martial Activations . | . . . Shielding Activations . | . . . Robots Disrupted . | . . . Combat Hostiles . | . . . Robots Corrupted . | . . . Combat Hostiles . | . . . Parts Fried 4 | . 1 3 Impact Corruptions . | . . . Robots Melted . | . . . Combat Hostiles . | . . . Parts Melted . | . . . Heat Transferred 175 | 125 . 50 Parts Sabotaged . | . . . Parts Stolen . | . . . Parts Stripped . | . . . Power Chain Reactions 3 | . 1 2 Alert | -11 -10 -10 ------- Run | Yrd Mat Sub Maximum Alert Level 1 | . 1 . Low Security (%) 82 | 100 79 . Level 1 17 | . 20 . Level 2 . | . . . Level 3 . | . . . Level 4 . | . . . Level 5 . | . . . High Security . | . . . Max Security . | . . . Peak Influence 274 | 10 274 . Initial . | . . . Average 104 | . 127 . Influence Increases 620 | 15 565 40 Destroy 0b10 Robot/C 340 | . 300 40 Destroy 0b10 Robot/NC 40 | 15 25 . Destroy Leader 66 | . 66 . Successful Hack 25 | . 25 . Disable Machine 45 | . 45 . Destroy Structure 104 | . 104 . Influence Decreases 585 | 15 304 266 Entered New Map 126 | . . 126 Time Decay 429 | 15 284 130 Lost Part 30 | . 20 10 Squads Dispatched 3 | . 3 . Investigation 3 | . 3 . Extermination . | . . . Reinforcement . | . . . Assault . | . . . Garrison . | . . . Intercept . | . . . Searches Triggered . | . . . Construction Impeded . | . . . Haulers Reinforced . | . . . Active Scanning Responses . | . . . Cargo Convoy Interrupts . | . . . Stealth | -11 -10 -10 --------- Run | Yrd Mat Sub Distress Signals . | . . . Communications Jammed . | . . . Distress Signals . | . . . Times Spotted 20 | . 17 3 Peak Tracking Total 4 | . 4 2 Tactical Retreats . | . . . Traps | -11 -10 -10 ------- Run | Yrd Mat Sub Traps Triggered 1 | . . 1 Indirectly 1 | . . 1 Trap Hack Attempts . | . . . Triggered . | . . . Disarmed . | . . . Reprogrammed . | . . . Reused . | . . . Traps Extracted . | . . . Installed . | . . . Triggered . | . . . Machines | -11 -10 -10 ---------- Run | Yrd Mat Sub Machines Disabled 3 | . 3 . Max in Single Turn 1 | . 1 . Machines Repaired . | . . . Machines Dismantled . | . . . Machines Sabotaged . | . . . Overloaded Fab Kills . | . . . Hacking | -11 -10 -10 --------- Run | Yrd Mat Sub Machines Accessed 6 | . 6 . Terminals 5 | . 5 . Fabricators . | . . . Repair Stations . | . . . Recycling Units 1 | . 1 . Scanalyzers . | . . . Garrison Access . | . . . Total Hacks 17 | . 17 . Successful 11 | . 11 . Failed 6 | . 6 . Catastrophic 1 | . 1 . Database Lockouts . | . . . Manual 2 | . 2 . Terminals 16 | . 16 . Fabricators . | . . . Repair Stations . | . . . Recycling Units 1 | . 1 . Scanalyzers . | . . . Garrison Access . | . . . Terminal Hacks 10 | . 10 . Record 9 | . 9 . Prototype ID Bank 1 | . 1 . Fabricator Hacks . | . . . Repair Station Hacks . | . . . Recycling Unit Hacks 1 | . 1 . Report Inventory 1 | . 1 . Scanalyzer . | . . . Garrison Access Hacks . | . . . Unauthorized Hacks . | . . . Terminals . | . . . Fabricators . | . . . Repair Stations . | . . . Recycling Units . | . . . Scanalyzers . | . . . Garrison Access . | . . . Data Cores Recovered . | . . . Used . | . . . Hacking Detections 4 | . 4 . Full Trace Events 3 | . 3 . Feedback Events . | . . . Feedback Blocked . | . . . Robot Schematics Acquired . | . . . Robots Built . | . . . Authchips . | . . . Time . | . . . Total Robot Build Rating . | . . . Part Schematics Acquired . | . . . Parts Built . | . . . Authchips . | . . . Time . | . . . Total Part Build Rating . | . . . Parts Repaired . | . . . Time . | . . . Parts Recycled . | . . . Recycled Matter . | . . . Retrieved Matter . | . . . Retrieved Components . | . . . Parts Scanalyzed . | . . . Part Schematics Acquired . | . . . Parts Damaged . | . . . Bothacking | -11 -10 -10 ------------ Run | Yrd Mat Sub Used RIF Installer . | . . . Robots Hacked 1 | . 1 . Non-combat 1 | . 1 . Combat . | . . . Robot Hacks Applied 1 | . 1 . parse_system 1 | . 1 . Relay Couplers Released . | . . . Fabnet Peak Effective % . | . . . Robots Rewired . | . . . Allies Hacked . | . . . Hacks Repelled . | . . . Allies | -11 -10 -10 -------- Run | Yrd Mat Sub Total Allies . | . . . Largest Group . | . . . Highest-Rated Group . | . . . Highest-Rated Ally . | . . . Total Orders . | . . . Ally Attacks . | . . . Total Damage . | . . . Kills . | . . . Allies Corrupted . | . . . Allies Melted . | . . . Intel | -11 -10 -10 ------- Run | Yrd Mat Sub Active Infowar (turns) 1158 | 115 778 265 Terrain 106 | 106 . . Structural 1011 | . 746 265 Seismic 115 | 83 32 . Robot Analysis Total . | . . . Derelict Logs Recovered . | . . . Drone Launches . | . . . Drone Recoveries . | . . . Exploration | -11 -10 -10 ------------- Run | Yrd Mat Sub Turns Passed 1220 | 177 778 265 Spaces Moved 776 | 119 507 150 Core 12 | 12 . . Treads . | . . . Legs 764 | 107 507 150 Wheels . | . . . Hover . | . . . Flight . | . . . Fastest Speed 50 | 50 120 120 Average Speed 132 | 117 127 160 Slowest Speed 190 | 150 190 190 Overloaded Moves . | . . . Propulsion Burnouts . | . . . Robots Hopped . | . . . Potential Cave-ins . | . . . Cave-ins Triggered 1 | . 1 . Exploration Rate (%) 30 | 7 75 10 Regions Visited 2 Branch Regions 1 Pre-discovered Areas . | . . . Known Exits Taken . | . . . Unknown Exits Taken 2 | 1 1 . Scrap Searched 2 | . . 2 Spaces Dug 7 | . 7 . Terrain Destroyed 125 | . 112 13 Melee . | . . . Projectile 7 | . 7 . AOE 118 | . 105 13 Terrain Rammed . | . . . Walls Destroyed . | . . . Machines Disabled . | . . . Actions | -11 -10 -10 --------- Run | Yrd Mat Sub Total 876 | 139 573 164 Wait 4 | . 4 . Move 774 | 118 506 150 Hop . | . . . Pick Up 15 | 5 9 1 Fast Attach 9 | 5 3 1 Attach 3 | 2 1 . Detach . | . . . Swap 15 | 1 11 3 Drop 7 | 1 4 2 Fire 48 | 7 34 7 Melee 1 | . 1 . Ram . | . . . Kick . | . . . Crush . | . . . Escape Stasis . | . . . Rewire . | . . . Trap . | . . . Miscellaneous . | . . . Route ------- -11/Scrapyard -10/Materials (discovered 6 exits: [*Mat x3] / [*Min x2] / [*Sub]) -10/Subcaves (discovered 1 exit: [*Mat]) History --------- Turn | Location | Event 32 | -11/Scrapyard | Discovered new exit (range 15) 178 | -11/Scrapyard | Entered Materials 307 | -10/Materials | Build established: Mutant 338 | -10/Materials | Discovered new exit (range 15) 372 | -10/Materials | Discovered new exit (range 16) 449 | -10/Materials | Crushed by falling debris 449 | -10/Materials | Core integrity fell below 50% 478 | -10/Materials | Discovered new exit (range 7) 574 | -10/Materials | Core integrity fell below 20% 632 | -10/Materials | Discovered new exit (range 14) 861 | -10/Materials | Discovered new exit (range 10) 865 | -10/Materials | Discovered new exit (range 11) 956 | -10/Materials | Entered Subcaves 970 | -10/Subcaves | Discovered new exit (range 11) 1062 | -10/Subcaves | A swath of the cavern ceiling suddenly collapsed 1211 | -10/Subcaves | Ambushed by swarm of Subdwellers 1221 | -10/Subcaves | Destroyed self with Subdweller Shrapnel Launcher Last Messages --------------- Acquired 59 matter. Subatomizers dissect the Sub. Power Source. Chain reaction triggered in Sub. Power Source. Piercing Trap short circuited. Spikes shoot up from the floor. EMP Blaster destroyed. Sub. Optics fried. Sub. Monowheel fried. Sub. Power Source fried. R1-WZ4(R) destroyed. Acquired 52 matter. System corrupted: Matter fused (-8). Searching scrap... Found Sub. Shrapnel Launcher. Found 67 Matter. Acquired 38 matter. Subatomizers dissect the Sub. Shrapnel Launcher. Acquired Sub. Shrapnel Launcher. Acquired 10 matter. System corrupted: EMP Blaster failed to launch. Map ----- +----------------------------------------------------+ | ?????????????????????????????????????????????????? | | ??????????????????????????????????????######?????? | | ???????????????????????????????????############### | | ??????????????????????????????????###### ######## | | ??????????????????????????????????### #### | | ??????????????????????????????????## ###" | | ??????????????????????????????????## ## #"##" | | ??????????????????????????????????## ## ""## | | ??????????????????????????????????## ## ### | | ?????????????????????????????????### ## ## | | ?????????????????????????????????### ###"##" | | ?????????????????????????????????## ### "#" | | ?????????????????????????????????## ### # | | ?????????????????????????????????### "#" "## | | ???????????????????????????######### "## | | ??????????????????????????########## ### ### | | ??????????????????????????### "### ### | | ??????????????????????????"#$ "### ### | | ?????????????????????????? #$ "## ## # | | ?????????????????????????? ## ######### | | ?????????????????????????? # # ### | | ?????????????????????????? # ## ## # ### | | ??????????????????????????## # #" ## ### < | | ??????????????????????## ## # ### ### | | ?????????????????????#####; # #### #### | | ????????????????????#### @ & # #" #### ## ## | | ????????????????????###< R& ;#" ## # | | ????????????????????##% <# ;# # ## # # | | ????????????????????## # ## ### | | ????????????????????### ###! ### ### | | ????????????????????######## # # | | ?????????????????????######## ## # | | ??????????????????????????######## ## | | ???????????????????????????####### #### # # # ! | | ????????????????????????????????############### | | ????????????????????????????????####?######### | | ????????????????????????????????????????????## # | | ????????????????????????????????????????????### # | | ????????????????????????????????????????????### # | | ?????????????????????????????????????????????## # | | ?????????????????????????????????????????????# | | ?????????????????????????????????????????????? | | ????????????????????????????????????????????## # | | ????????????????????????????????????????????## | | ????????????????????????????????????????????## # | | ????????????????????????????????????????????### # | | ????????????????????????????????????????????### | | ?????????????????????????????????????????????## | | ??????????????????????????????????????????????? # | | ??????????????????????????????????????????????? | +----------------------------------------------------+ Best States ------------- Heat Dissipation 25 Energy Generation 12 Energy Capacity 265 Matter Stores 300 Matter Capacity 300 Sight Range 16 Terrain Scan Range 16 Terrain Scan Density 10 Evasion (%) 55 Item Schematics ----------------- None Robot Schematics ------------------ None Fabricated ------------ Nothing Repaired ---------- Nothing Alien Tech Used ----------------- None Achievements -------------- Crack Shot Challenges ------------ None Game ------ Seed ExpertSchematicProtomatter Manual? 0 Play Time 00:24:56 Cumulative 3.8 hours Start 2025.06.03 @ 20:44:11 End 2025.06.03 @ 21:25:00 Sessions 1 Manual Loads 0 Difficulty Rogue Special Mode None Game No. 4 Rogue 4 Adventurer 0 Explorer 0 Win Type - Total 0 Types 0/0/0/0/0/0/0/0/0/0 Lore% 3 Gallery% 5 Achievement% 8 Wizard Run 0 Options --------- Layout 0 ASCII 0 Keyboard 0 Movement Mouse Keybinds 0 Fullscreen 1 Font 18/SmallcapsGlow Map View 76x50 Zoom Use 0% Tactical HUD 0 Map Filters NONE Filters NONE Steam 1 RUN: a3b3a122-915b-4595-b7c2-e8bd33f64e84